bitfinex-derivatives/quotes_ETHF0:USTF0_20250123
["timestamp","ask_amount","ask_price","bid_price","bid_amount"]
[1737649596483,27.40448678,3273.7,3271.9,3.2078]
[1737649596484,3.48209881,3273.4,3273.3,0.00458596]
[1737649596882,7.68495724,3273.4,3273.3,0.00458596]
[1737649597286,0.611,3272.9,3272.4,0.61107]
[1737649597482,2.87120881,3273.0,3272.3,3.2078]
[1737649597778,3.95163189,3272.8,3272.6,0.61104]
[1737649597979,3.95163189,3272.9,3272.8,0.611]
[1737649598182,3.2078,3273.1,3272.8,3.68719886]
[1737649598382,3.2078,3273.1,3273.0,4.29815886]
[1737649599081,0.6109,3273.4,3273.0,3.68719886]
[1737649599288,0.61089,3273.4,3273.2,3.68719886]
[1737649599490,4.50033743,3273.4,3273.2,3.68719886]
[1737649599988,3.88944743,3273.4,3273.2,3.68719886]
[1737649600186,0.28654984,3273.3,3273.2,0.61092]
[1737649600386,0.28654984,3273.3,3272.8,3.2078]
[1737649600387,3.88944743,3273.4,3273.3,3.68719886]
[1737649600584,3.2078,3273.5,3273.3,3.68719886]
[1737649600779,3.2078,3273.5,3273.4,4.29808886]
[1737649600981,20.28038573,3273.7,3273.6,0.61085]
[1737649601289,20.28038573,3273.7,3273.6,7.50584886]
[1737649602285,0.00458596,3274.0,3273.6,6.89499886]
[1737649602496,0.00458596,3274.0,3273.9,4.29798886]
[1737649603786,9.54371093,3274.4,3274.3,0.61072]
[1737649603787,5.85651207,3274.4,3274.3,0.61072]
[1737649603996,5.85651207,3274.4,3274.3,3.81852]
[1737649604184,2.12452611,3274.4,3274.3,8.81852]
[1737649604591,2.12452611,3274.4,3274.3,3.81852]
[1737649604981,2.12452611,3274.4,3274.3,3.2078]
[1737649605594,0.00458596,3274.7,3274.3,3.2078]
[1737649605803,0.6107,3274.4,3274.3,3.2078]
[1737649606293,0.6107,3274.4,3273.9,0.61078]
[1737649606294,0.61071,3274.2,3273.9,3.2078]
[1737649606493,0.00458596,3274.7,3274.3,0.61068]
[1737649606804,0.00458596,3274.7,3273.9,3.2078]
[1737649606805,4.5131332,3274.6,3274.2,0.61069]
[1737649606989,0.61065,3274.5,3274.1,0.61072]
[1737649607189,3.9024932,3274.6,3273.9,3.2078]
[1737649607389,3.96563363,3274.4,3274.2,0.61069]
[1737649607596,3.96563363,3274.5,3274.3,0.61068]
[1737649607793,3.96563363,3274.5,3273.9,3.2078]
[1737649607996,0.61064,3274.6,3274.1,0.6107]
[1737649608191,3.92700226,3274.4,3273.9,3.2078]
[1737649608391,3.92700226,3274.4,3274.2,0.6107]
[1737649608691,3.31518348,3274.5,3273.9,3.2078]
[1737649608896,3.92700226,3274.3,3273.9,3.2078]
[1737649609198,0.61074,3274.0,3273.9,3.2078]
[1737649609404,7.0177844,3274.2,3273.9,3.2078]
[1737649609588,4.0359844,3274.0,3273.9,3.2078]
[1737649609790,4.0359844,3274.0,3273.9,3.81856]
[1737649610090,2.3711,3274.6,3273.9,3.2078]
[1737649610286,2.3711,3274.6,3274.3,0.61067]
[1737649610493,4.18553762,3274.6,3273.9,3.2078]
[1737649610703,0.00458596,3274.7,3273.9,3.2078]
[1737649610899,0.61066,3274.4,3274.0,0.61071]
[1737649611195,0.61066,3274.4,3274.1,0.61069]
[1737649611400,0.61066,3274.4,3273.3,3.98974]
[1737649611401,3.2078,3273.8,3272.1,0.61107]
[1737649611595,3.2078,3272.2,3271.4,1.52803]
[1737649611897,3.2078,3272.2,3271.3,2.2383]
[1737649611898,3.2078,3272.2,3272.1,0.61108]
[1737649612296,3.2078,3272.9,3272.1,5.0]
[1737649612498,3.2078,3272.9,3272.6,0.61098]
[1737649612700,0.00458596,3272.8,3272.7,0.61097]
[1737649612894,3.2078,3273.5,3272.7,3.2078]
[1737649613095,3.2078,3273.5,3273.4,0.61084]
[1737649613596,3.2078,3273.5,3272.8,0.61095]
[1737649613903,3.2078,3274.0,3273.2,0.61087]
[1737649614089,0.00458596,3273.5,3273.4,0.61084]
[1737649615502,0.00458596,3273.5,3273.4,5.61084]
[1737649616601,0.00458596,3273.5,3273.4,0.61084]
[1737649620203,0.00458596,3273.5,3273.2,5.505]
[1737649620505,0.00458596,3273.5,3273.4,0.61084]
[1737649620804,3.2078,3274.8,3273.3,3.31518348]
[1737649621009,0.61057,3274.8,3274.7,0.61058]
[1737649621209,3.2078,3275.3,3274.5,3.2078]
[1737649621394,0.61051,3275.2,3275.0,0.61054]
[1737649621594,0.61051,3275.2,3274.3,3.79517]
[1737649621595,0.61056,3274.9,3274.5,3.2078]
[1737649621800,3.99902113,3275.2,3274.5,3.2078]
[1737649622111,0.61063,3274.5,3274.4,0.00458596]
[1737649622407,3.81843,3274.5,3274.4,0.00458596]
[1737649622606,0.6107,3274.2,3274.1,3.2078]
[1737649622907,3.31518348,3274.4,3273.4,3.2078]
[1737649623107,5.4814,3274.1,3273.4,3.2078]
[1737649623500,3.2078,3273.6,3272.9,3.2078]
[1737649623900,3.2078,3273.6,3272.9,3.21238596]
[1737649623901,3.90168992,3273.5,3272.9,3.21238596]
[1737649624711,3.2078,3273.6,3273.5,0.61083]
[1737649624911,3.8186,3273.7,3273.5,0.61083]
[1737649625097,3.8186,3273.7,3273.0,2.3715]
[1737649625098,3.2078,3273.7,3273.0,2.3715]
[1737649625404,4.51314703,3273.6,3273.0,2.3715]
[1737649625601,4.51314703,3273.6,3273.3,0.61085]
[1737649625807,4.51314703,3273.6,3273.4,0.61084]
[1737649626001,0.61084,3273.5,3273.1,0.61091]
[1737649626203,2.3829,3274.0,3273.3,3.2078]
[1737649626398,3.28013717,3274.0,3273.7,0.61078]
[1737649626600,5.4814,3274.1,3273.3,4.73498]
[1737649626912,5.4814,3274.1,3273.0,2.3715]
[1737649626913,3.89066094,3274.0,3273.8,3.2078]
[1737649627106,3.89066094,3274.0,3273.9,0.61076]
[1737649627307,4.73461,3274.1,3273.4,0.61085]
[1737649627504,3.2078,3273.7,3273.1,3.2078]
[1737649627712,0.61093,3273.0,3272.9,0.00458596]
[1737649627907,4.92380465,3273.6,3272.9,0.00458596]
[1737649628103,0.89733688,3273.5,3273.3,0.61086]
[1737649628304,0.61088,3273.3,3272.9,0.00458596]
[1737649628507,4.66405719,3273.4,3273.2,0.61087]
[1737649628707,4.05319719,3273.4,3272.9,0.00458596]
[1737649628998,4.66405719,3273.4,3273.3,0.61087]
[1737649629205,4.64188596,3273.6,3272.9,0.00458596]
[1737649629412,0.61087,3273.3,3273.1,0.61089]
[1737649629606,0.6109,3273.2,3273.0,0.61091]
[1737649629806,0.61092,3273.1,3273.0,0.61091]
[1737649630007,0.28650388,3273.4,3272.9,0.00458596]
[1737649630215,3.95658285,3273.4,3273.3,0.61087]
[1737649630411,0.28650388,3273.5,3273.4,0.61085]
[1737649630613,0.00458596,3273.6,3273.5,0.61083]
[1737649630911,0.61539596,3273.6,3273.5,0.61083]
[1737649631108,0.00458596,3273.6,3273.1,3.2078]
[1737649631306,0.61089,3273.2,3273.1,3.8187]
[1737649631502,2.7193595,3273.5,3273.1,3.2078]
[1737649631706,0.61088,3273.3,3273.2,0.61088]
[1737649631903,0.61089,3273.2,3273.1,3.2078]
[1737649632103,0.61093,3273.0,3272.9,0.00458596]
[1737649632304,0.61109,3272.2,3271.9,0.61112]
[1737649632509,0.61115,3272.0,3271.8,3.81898]
[1737649632813,7.21730748,3272.1,3270.9,3.2078]
[1737649633005,0.61114,3272.1,3271.8,0.61117]
[1737649633209,2.65371414,3272.3,3271.1,1.5283]
[1737649633407,2.94018643,3272.3,3272.2,0.61111]
[1737649633607,2.65815825,3272.3,3272.2,0.61111]
[1737649634113,0.29105825,3272.3,3272.2,0.61111]
[1737649634418,0.00458596,3272.3,3271.8,2.3189]
[1737649634611,0.61111,3272.2,3271.7,0.61119]
[1737649634807,2.388,3272.2,3271.6,0.00458596]
[1737649635018,3.81901,3271.7,3271.6,0.00458596]
[1737649635314,3.81901,3271.7,3270.9,0.61135]
[1737649635315,0.61132,3271.1,3270.9,0.61135]
[1737649635509,3.2078,3271.2,3269.8,3.2078]
[1737649635706,3.2078,3271.2,3270.0,0.61151]
[1737649635707,0.61146,3270.4,3270.0,0.61151]
[1737649635903,3.2078,3270.6,3269.8,3.2078]
[1737649636109,0.61153,3270.0,3269.8,3.2078]
[1737649636315,0.61151,3270.1,3269.8,3.2078]
[1737649636714,0.61154,3270.0,3269.8,3.2078]
[1737649637013,3.9369915,3270.0,3269.8,3.2078]
[1737649637320,0.00458596,3270.2,3269.8,3.2078]
[1737649637510,0.00458596,3270.2,3270.1,0.6115]
[1737649637910,0.00458596,3270.2,3269.8,3.2078]
[1737649637911,0.00458596,3270.2,3269.9,2.2763]
[1737649638113,0.00458596,3270.2,3269.8,3.81935]
[1737649638314,0.00458596,3270.2,3269.8,3.2078]
[1737649638508,0.61154,3270.0,3269.8,3.2078]
[1737649638911,9.55117718,3270.1,3269.6,0.00458596]
[1737649639115,0.61158,3269.7,3269.6,0.00458596]
[1737649639507,4.54727111,3269.7,3269.6,0.00458596]
[1737649640020,0.61162,3269.5,3269.4,4.70311661]
[1737649640414,4.56525203,3269.5,3269.4,4.70311661]
[1737649640616,3.95363203,3269.5,3269.4,4.70311661]
[1737649640815,3.95363203,3269.5,3269.2,7.05467492]
[1737649641118,3.31518348,3269.9,3269.2,7.05467492]
[1737649641119,3.2078,3269.3,3269.2,7.05467492]
[1737649641614,3.2078,3269.3,3269.2,7.66634492]
[1737649642515,3.2078,3269.7,3269.5,0.61161]
[1737649642713,3.2078,3269.7,3269.4,0.61162]
[1737649642921,3.97400093,3269.9,3269.8,0.61156]
[1737649643215,0.00458596,3270.2,3270.1,0.6115]
[1737649643721,0.00458596,3270.2,3270.1,44.6193]
[1737649644118,0.00458596,3270.2,3270.1,41.4115]
[1737649644810,0.00458596,3270.2,3270.1,0.6115]
[1737649645323,0.00458596,3270.2,3270.1,41.4115]
[1737649645822,0.00458596,3270.2,3270.0,0.61151]
[1737649646007,3.93369252,3270.2,3269.3,4.5057]
[1737649646208,3.93369252,3270.2,3270.1,0.6115]
[1737649646417,0.00458596,3270.2,3270.0,3.2078]
[1737649646607,2.3606,3270.1,3269.6,0.61159]
[1737649646814,2.3606,3270.1,3269.3,0.61165]
[1737649647015,3.94320332,3270.0,3269.2,3.2078]
[1737649647416,3.2078,3269.8,3269.2,3.2078]
[1737649647617,3.2078,3269.8,3268.9,2.4316]
[1737649647920,3.2078,3269.4,3268.8,3.2078]
[1737649648115,4.00474174,3269.7,3268.8,3.2078]
[1737649648317,7.25881533,3269.8,3268.9,1.52933]
[1737649648617,3.2078,3269.8,3268.8,3.2078]
[1737649648919,3.2078,3269.8,3268.9,1.52933]
[1737649649119,3.2078,3269.8,3269.7,0.61158]
[1737649649329,2.3606,3270.1,3269.4,3.2078]
[1737649649518,3.21238596,3270.2,3269.4,3.2078]
[1737649649718,4.56698172,3270.0,3269.7,0.61157]
[1737649649917,3.95545172,3270.0,3269.8,0.61155]
[1737649650125,3.21238596,3270.2,3269.4,3.2078]
[1737649650318,3.21238596,3270.2,3270.1,0.6115]
[1737649650626,3.21238596,3270.2,3269.9,0.61152]
[1737649650831,0.61154,3269.9,3269.6,0.61158]
[1737649651021,0.61152,3270.0,3269.4,3.2078]
[1737649651328,3.21238596,3270.2,3270.0,0.61151]
[1737649651529,3.21238596,3270.2,3269.4,3.2078]
[1737649652023,3.21238596,3270.2,3269.4,4.73688]
[1737649652231,3.21238596,3270.2,3270.1,0.6115]
[1737649652419,0.00458596,3270.2,3270.1,0.6115]
[1737649654228,0.00458596,3270.2,3270.0,0.61151]
[1737649654229,0.61608596,3270.2,3270.0,0.61151]
[1737649654428,0.00458596,3270.2,3270.0,0.61151]
[1737649654630,0.61608596,3270.2,3270.0,0.61151]
[1737649654930,4.05175658,3270.1,3269.3,3.2078]
[1737649655127,0.61154,3270.0,3269.8,0.61155]
[1737649655328,6.37945658,3270.1,3269.2,4.6991]
[1737649655522,0.61154,3269.9,3269.4,3.2078]
[1737649655826,3.92234746,3270.0,3269.4,3.2078]
[1737649656028,2.3277,3270.1,3270.0,0.61152]
[1737649656332,2.3277,3270.1,3269.8,0.61155]
[1737649656333,0.61153,3270.0,3269.8,0.61155]
[1737649656518,2.3277,3270.1,3270.0,0.61152]
[1737649658427,2.3277,3270.1,3269.2,6.22829]
[1737649658428,0.00458596,3270.2,3270.1,0.6115]
[1737649658626,6.52298348,3271.4,3270.1,0.6115]
[1737649658823,0.61139,3270.8,3270.3,3.2078]
[1737649659129,3.2078,3271.0,3270.3,3.2078]
[1737649659523,3.2078,3271.0,3270.9,0.61135]
[1737649660024,0.00458596,3271.3,3271.2,0.6113]
[1737649660932,0.00458596,3271.3,3270.9,2.31]
[1737649661132,0.61139,3270.7,3270.6,0.00458596]
[1737649661627,4.53548816,3270.7,3270.6,0.00458596]
[1737649662422,4.53548816,3270.7,3269.2,0.24317493]
[1737649662423,9.21088595,3270.7,3269.4,3.2078]
[1737649662632,2.87256249,3269.9,3269.4,3.2078]
[1737649662831,0.61157,3269.8,3269.6,0.61159]
[1737649663032,3.95801282,3269.8,3269.7,0.61158]
[1737649663738,3.95801282,3269.8,3269.4,3.2078]
[1737649663936,3.48418249,3269.5,3269.4,3.2078]
[1737649664129,2.87256249,3269.5,3268.7,3.2078]
[1737649664430,3.81944,3269.4,3268.5,3.99849]
[1737649664626,3.21238596,3269.4,3268.6,1.52947]
[1737649664932,0.61165,3269.3,3269.0,0.6117]
[1737649665231,3.21238596,3269.4,3268.3,3.2078]
[1737649665232,3.93738128,3269.2,3268.3,3.2078]
[1737649665433,0.61174,3268.9,3268.6,0.61178]
[1737649665728,3.2078,3269.0,3268.4,0.61181]
[1737649665926,5.22686249,3269.1,3268.2,2.2447]
[1737649665927,3.2078,3268.6,3268.2,2.2447]
[1737649666124,3.2078,3268.6,3267.9,3.2078]
[1737649666330,2.87256249,3268.3,3268.2,0.61186]
[1737649666734,3.2078,3268.6,3268.5,0.6118]
[1737649666927,3.2078,3268.6,3267.9,3.2078]
[1737649667123,3.2078,3268.6,3268.0,2.2447]
[1737649667435,3.2078,3268.6,3268.5,0.6118]
[1737649667826,2.87256249,3268.8,3268.7,0.61177]
[1737649668032,2.4791,3268.9,3268.8,0.61175]
[1737649668432,6.48487298,3268.9,3268.8,0.61175]
[1737649668834,2.4791,3268.9,3268.3,3.2078]
[1737649669026,2.4791,3268.9,3268.8,0.61175]
[1737649669636,3.21238596,3269.4,3269.3,0.61165]
[1737649670334,0.00458596,3269.4,3269.3,0.61165]
[1737649671740,3.2078,3270.2,3270.1,0.6115]
[1737649672230,3.32310659,3271.3,3270.1,0.6115]
[1737649672231,3.2078,3270.6,3270.5,0.61143]
[1737649672632,3.2078,3271.0,3270.1,3.2078]
[1737649672828,0.61137,3270.9,3270.6,0.6114]
[1737649673032,0.61137,3270.9,3270.1,3.2078]
[1737649673033,3.96156722,3270.9,3270.1,3.2078]
[1737649673229,3.96156722,3270.9,3270.8,0.61137]
[1737649673433,0.00458596,3270.9,3270.8,0.61137]
[1737649674131,0.61593596,3270.9,3270.7,0.61139]
[1737649674341,0.00458596,3270.9,3270.8,0.61137]
[1737649674937,3.2078,3271.5,3270.8,0.61137]
[1737649674938,3.2078,3271.5,3270.8,5.61137]
[1737649675240,3.2078,3271.5,3271.4,0.61126]
[1737649675748,0.61113,3272.1,3271.9,0.61116]
[1737649675944,4.819,3272.2,3271.6,3.2078]
[1737649676130,4.02183738,3272.1,3272.0,0.61115]
[1737649676335,4.02183738,3272.1,3271.7,0.00458596]
[1737649676848,5.43012,3272.2,3272.0,0.61114]
[1737649677035,4.819,3272.2,3272.0,0.61114]
[1737649677335,2.4153,3272.2,3272.1,0.61113]
[1737649677538,0.00458596,3272.3,3272.2,0.61111]
[1737649677736,0.00458596,3272.3,3271.7,0.00458596]
[1737649677932,3.2078,3272.1,3271.7,0.00458596]
[1737649678131,7.23132122,3272.3,3271.7,0.00458596]
[1737649678337,3.93880255,3272.3,3271.8,0.61119]
[1737649678535,3.2078,3271.9,3271.7,0.00458596]
[1737649679142,0.61114,3272.1,3271.7,0.61577596]
[1737649679342,6.53549255,3272.3,3271.7,0.00458596]
[1737649679542,4.06133055,3272.0,3271.7,0.00458596]
[1737649679739,0.61116,3272.0,3271.7,0.61578596]
[1737649679941,0.28666065,3272.2,3271.7,0.00458596]
[1737649680141,3.93429659,3271.8,3271.7,0.00458596]
[1737649680343,0.61126,3271.4,3271.1,0.6113]
[1737649680644,3.2078,3271.5,3271.4,0.61126]
[1737649680842,2.3378,3271.7,3270.9,3.2078]
[1737649681039,3.2078,3271.9,3271.3,3.2078]
[1737649681236,3.2078,3271.9,3271.8,0.61119]
[1737649681637,0.61119,3271.8,3271.4,0.61125]
[1737649681846,3.2078,3271.9,3271.3,0.00458596]
[1737649682044,3.2078,3271.9,3271.8,0.61119]
[1737649682249,3.81897,3271.9,3271.6,0.61121]
[1737649682550,3.2078,3271.9,3271.8,0.61119]
[1737649682844,3.2078,3271.9,3271.3,0.00458596]
[1737649683236,3.2078,3271.5,3271.3,0.00458596]
[1737649683436,3.2078,3271.5,3271.4,0.61126]
[1737649683844,0.61117,3271.9,3271.7,0.6112]
[1737649684044,3.06744,3272.1,3271.3,4.74058596]
[1737649684246,2.4563,3272.1,3271.4,2.4887]
[1737649684541,0.6112,3271.8,3271.4,2.4887]
[1737649684746,0.6112,3271.8,3271.6,0.61122]
[1737649684940,0.61121,3271.7,3271.5,0.61123]
[1737649685339,3.2078,3271.8,3271.4,2.4887]
[1737649685541,3.2078,3271.8,3271.7,0.61121]
[1737649686348,2.4563,3272.1,3272.0,0.61115]
[1737649686546,3.2078,3272.2,3272.1,0.61113]
[1737649687152,3.2078,3272.2,3271.4,5.6965]
[1737649687351,3.81892,3272.2,3271.5,1.52809]
[1737649687651,3.2078,3272.2,3271.5,1.52809]
[1737649687948,3.2078,3272.2,3272.1,0.61113]
[1737649690745,0.00458596,3272.3,3271.7,1.52798]
[1737649690945,0.00458596,3272.3,3272.2,0.61111]
[1737649691251,0.00458596,3272.3,3272.2,3.81891]
[1737649691459,2.4135,3273.5,3273.4,0.61089]
[1737649691852,0.61084,3273.7,3273.5,0.61085]
[1737649692050,4.6968,3273.8,3272.8,1.5275]
[1737649692351,4.00168337,3273.7,3272.6,40.8]
[1737649692545,2.87046276,3273.5,3272.6,40.8]
[1737649692746,0.00458596,3273.5,3273.4,0.61089]
[1737649693353,0.00458596,3273.5,3273.4,3.81869]
[1737649694753,3.91095886,3273.5,3273.0,3.2078]
[1737649694956,0.00458596,3273.5,3273.4,0.61089]
[1737649695760,0.00458596,3273.5,3273.1,0.61094]
[1737649695958,0.61545596,3273.5,3273.2,0.61091]
[1737649696164,0.00458596,3273.5,3273.2,0.61091]
[1737649696351,0.00458596,3273.5,3273.4,0.61089]
[1737649696550,0.00458596,3273.5,3273.3,0.6109]
[1737649697060,0.00458596,3273.5,3273.4,0.61089]
[1737649697660,0.00458596,3273.5,3273.0,3.2078]
[1737649697859,0.00458596,3273.5,3273.4,0.61089]
[1737649698357,0.00458596,3273.5,3273.0,3.2078]
[1737649698853,0.00458596,3273.5,3273.2,0.61086]
[1737649699157,0.00458596,3273.5,3273.0,3.2078]
[1737649699368,0.00458596,3273.5,3273.4,0.61083]
[1737649702557,0.00458596,3273.5,3273.4,3.81863]
[1737649702955,0.61539596,3273.5,3273.4,3.2078]
[1737649703256,0.00458596,3273.5,3273.4,3.81863]
[1737649703646,0.00458596,3273.5,3273.4,0.61083]
[1737649706256,0.00458596,3273.5,3273.4,3.81863]
[1737649712362,0.00458596,3273.5,3273.4,0.61083]
[1737649712764,0.00458596,3273.5,3273.0,3.2078]
[1737649713160,0.00458596,3273.5,3273.4,0.61083]
[1737649713363,0.00458596,3273.5,3273.4,3.81863]
[1737649714261,5.96e-06,3273.5,3273.4,8.81863]
[1737649714763,0.28646177,3274.6,3273.4,8.44550896]
[1737649715068,3.2078,3274.7,3274.6,0.6106]
[1737649716159,3.2078,3274.7,3274.1,5.5251]
[1737649716160,0.6106,3274.6,3274.5,3.2078]
[1737649716467,0.61065,3274.4,3274.2,0.61067]
[1737649716663,8.0606,3274.9,3274.1,5.5251]
[1737649716967,4.8528,3274.9,3274.8,0.61057]
[1737649717262,0.61066,3274.4,3274.1,3.81848]
[1737649717465,6.07826276,3274.7,3273.6,5.6171]
[1737649717765,6.07826276,3274.7,3274.0,3.2078]
[1737649717964,3.2078,3274.7,3274.0,3.2078]
[1737649718163,4.8528,3274.9,3274.0,3.2078]
[1737649718368,4.8528,3274.9,3274.8,0.61057]
[1737649718669,4.8528,3274.9,3274.5,3.2078]
[1737649718670,0.61057,3274.8,3274.5,3.2078]
[1737649718863,0.61057,3274.8,3274.6,0.61059]
[1737649719168,0.61057,3274.8,3274.5,3.2078]
[1737649719169,4.8528,3274.9,3274.5,0.61062]
[1737649719361,4.8528,3274.9,3274.1,3.2078]
[1737649719557,4.8528,3274.9,3274.6,0.6106]
[1737649719758,2.49418596,3275.0,3274.5,3.2078]
[1737649719759,0.00458596,3275.0,3274.5,3.2078]
[1737649719961,0.00458596,3275.0,3274.9,0.61055]
[1737649720655,0.00458596,3275.0,3274.9,3.81835]
[1737649721062,0.28631134,3275.7,3275.6,0.61042]
[1737649721369,0.28625801,3276.7,3275.6,3.2078]
[1737649721555,11.16895315,3276.8,3276.1,3.2078]
[1737649721758,3.15666334,3276.7,3276.1,3.2078]
[1737649722063,0.61028,3276.4,3276.1,3.2078]
[1737649722263,2.87504165,3276.7,3276.1,3.82269889]
[1737649722463,2.87504165,3276.7,3276.1,3.21237889]
[1737649722765,0.61031,3276.2,3276.1,0.00457889]
[1737649723168,4.66222287,3276.2,3276.1,0.00457889]
[1737649724171,4.94852697,3276.2,3276.1,0.00457889]
[1737649724671,5.86399697,3276.2,3275.3,3.2078]
[1737649724873,3.2078,3276.0,3275.3,3.2078]
[1737649725072,0.61045,3275.5,3275.3,3.2078]
[1737649725563,6.39585508,3275.9,3275.3,3.2078]
[1737649725768,4.53119975,3275.4,3275.3,3.2078]
[1737649725961,4.53119975,3275.4,3275.1,0.00457889]
[1737649725962,3.92074975,3275.4,3275.1,0.00457889]
[1737649726268,2.87046276,3275.5,3275.1,0.00457889]
[1737649726269,0.61049,3275.2,3275.1,0.00457889]
[1737649726469,3.92074975,3275.4,3275.1,0.00457889]
[1737649726664,0.61049,3275.3,3275.1,0.00457889]
[1737649726973,4.58687491,3275.2,3275.1,0.00457889]
[1737649727672,1.52579,3276.2,3275.1,0.00457889]
[1737649727673,2.3964,3275.5,3275.1,0.00457889]
[1737649727872,2.4795,3275.9,3275.1,0.00457889]
[1737649728272,0.61048,3275.3,3275.1,0.00457889]
[1737649728574,0.61047,3275.3,3275.1,3.21237889]
[1737649728866,0.61049,3275.2,3275.1,0.00457889]
[1737649729576,3.2078,3275.6,3275.1,0.00457889]
[1737649729874,0.61049,3275.2,3275.1,0.00457889]
[1737649730070,3.9906304,3275.5,3275.1,0.00457889]
[1737649730276,0.61049,3275.2,3275.1,0.00457889]
[1737649732776,0.28634066,3275.5,3275.1,0.00457889]
[1737649732974,3.2078,3275.6,3275.1,0.00457889]
[1737649733275,0.61044,3275.5,3275.4,0.61045]
[1737649733666,2.4795,3275.9,3275.1,0.00457889]
[1737649733978,3.2078,3276.4,3276.3,0.61029]
[1737649734371,0.6103,3276.3,3276.2,0.6103]
[1737649734675,3.81808,3276.4,3276.3,0.61029]
[1737649734877,3.2078,3276.4,3276.3,0.61029]
[1737649735285,3.05774,3276.6,3276.0,3.2078]
[1737649735572,2.4475,3276.6,3276.5,0.61025]
[1737649735965,0.00457889,3276.7,3276.0,3.2078]
[1737649736177,0.61028,3276.4,3276.0,3.2078]
[1737649736372,0.61028,3276.4,3276.2,0.61029]
[1737649736577,0.61026,3276.5,3276.3,0.61029]
[1737649736770,0.61024,3276.6,3276.0,3.2078]
[1737649737072,0.00457889,3276.7,3276.6,0.61023]
[1737649738271,0.61023,3276.6,3276.5,0.61024]
[1737649738770,0.00457889,3276.7,3276.4,3.2078]
[1737649739076,0.00457889,3276.7,3276.6,0.61023]
[1737649739579,0.61478889,3276.7,3276.6,0.61023]
[1737649739781,0.61024,3276.6,3276.4,3.2078]
[1737649740174,0.61479889,3276.7,3276.6,0.61023]
[1737649740681,0.61478889,3276.7,3276.6,0.61023]
[1737649741176,0.61025,3276.5,3276.4,3.81806]
[1737649741780,0.00457889,3276.7,3276.4,3.2078]
[1737649742167,0.61025,3276.5,3276.4,3.2078]
[1737649742377,0.61025,3276.5,3276.4,3.81807]
[1737649742781,0.61025,3276.5,3276.4,3.2078]
[1737649743180,0.61025,3276.5,3276.4,3.81807]
[1737649743482,0.00457889,3276.7,3276.0,3.2078]
[1737649743685,0.61026,3276.5,3276.4,0.61026]
[1737649744279,0.61024,3276.6,3276.5,0.61023]
[1737649744478,0.00457889,3276.7,3276.6,0.61023]
[1737649744674,0.00457889,3276.7,3276.6,3.48069276]
[1737649744878,0.00457889,3276.7,3276.6,6.01839276]
[1737649745884,0.00457889,3276.7,3276.6,5.50903201]
[1737649752190,7.4465,3277.8,3276.6,4.89880201]
[1737649752391,9.80760201,3277.8,3277.3,3.2078]
[1737649752687,0.61008,3277.4,3277.3,3.2078]
[1737649752983,0.61017,3276.9,3276.8,3.81798]
[1737649753187,0.61015,3277.1,3277.0,0.61014]
[1737649753582,0.61015,3277.1,3276.9,0.61017]
[1737649753783,0.61015,3277.1,3277.0,0.61016]
[1737649754682,0.61470889,3277.2,3277.1,0.61014]
[1737649754884,0.61470889,3277.2,3276.8,3.2078]
[1737649754885,0.00457889,3277.2,3276.8,3.2078]
[1737649755086,0.00457889,3277.2,3276.9,0.61016]
[1737649755087,0.61017,3277.0,3276.9,0.61016]
[1737649755286,0.61015,3277.1,3277.0,0.61014]
[1737649755789,0.00457889,3277.2,3276.8,3.2078]
[1737649755984,0.61017,3276.9,3276.8,3.81798]
[1737649756385,0.61017,3276.9,3276.8,3.2078]
[1737649756585,4.54329414,3276.9,3276.8,3.2078]
[1737649757397,8.06356,3277.0,3276.9,0.61017]
[1737649758186,7.4534,3277.0,3276.9,0.61017]
[1737649758392,5.55696,3277.0,3276.9,0.61017]
[1737649758784,4.9468,3277.0,3276.9,0.61017]
[1737649759404,0.61470889,3277.2,3277.1,0.61014]
[1737649759782,0.00457889,3277.2,3277.1,2.97124201]
[1737649759987,0.00457889,3277.2,3276.8,3.2078]
[1737649760179,2.36110201,3276.9,3276.5,0.00457889]
[1737649760391,0.61023,3276.6,3276.5,0.00457889]
[1737649760587,0.61023,3276.6,3276.5,0.61482889]
[1737649760786,0.61023,3276.6,3276.5,0.00457889]
[1737649761293,0.61023,3276.7,3276.6,0.61022]
[1737649761493,8.1855,3276.8,3276.5,0.00457889]
[1737649761688,3.2078,3276.8,3276.5,0.00457889]
[1737649761994,0.61023,3276.6,3276.5,0.61481889]
[1737649762191,0.61022,3276.7,3276.6,0.61022]
[1737649762798,0.61023,3276.6,3276.5,0.61480889]
[1737649762995,0.61022,3276.7,3276.6,0.61022]
[1737649763589,0.57239302,3276.9,3276.5,0.00457889]
[1737649763784,0.61023,3276.6,3276.5,0.00457889]
[1737649764299,4.55479047,3276.6,3276.5,0.00457889]
[1737649764596,0.61025,3276.5,3276.4,3.2078]
[1737649764897,2.36110201,3275.5,3275.1,3.2078]
[1737649765095,5.56890201,3275.5,3275.1,3.2078]
[1737649765399,0.28619272,3275.4,3275.3,0.61047]
[1737649765694,2.5062,3276.5,3275.5,1.52608]
[1737649765695,5.7169,3276.3,3275.5,1.52608]
[1737649765897,0.61035,3276.0,3275.9,0.61035]
[1737649766300,0.28626022,3276.2,3276.1,0.61032]
[1737649766498,6.32719,3276.3,3275.7,1.526]
[1737649766796,6.32719,3276.3,3276.2,0.61031]
[1737649767789,6.00313712,3276.3,3276.2,0.61031]
[1737649767996,3.49403712,3276.3,3276.2,0.61031]
[1737649768196,3.49403712,3276.3,3276.2,2.97141201]
[1737649768390,0.28623712,3276.3,3276.2,2.97141201]
[1737649768593,3.2078,3276.8,3275.9,5.56890201]
[1737649768896,0.61031,3276.2,3276.1,0.61031]
[1737649769196,0.28621122,3276.7,3275.9,7.09480201]
[1737649769394,0.28621122,3276.7,3276.2,2.36110201]
[1737649769601,0.61022,3276.7,3276.6,0.61021]
[1737649769802,0.61024,3276.6,3276.5,0.61024]
[1737649770304,0.61022,3276.7,3276.6,0.61022]
[1737649770504,0.61026,3276.5,3276.4,0.61026]